[Event "Open international de Salon de Provence"]
[Site "Salon de Provence, France"]
[Date "2024.07.07"]
[Round "3.3"]
[White "Philippe, Guillaume"]
[Black "Nikolov, Momchil"]
[Result "1-0"]
[WhiteElo "2359"]
[BlackElo "2460"]
[PlyCount "47"]
[EventDate "2024.??.??"]
[TimeControl "1"]

1. e4 {[%emt 0:00:00]} c5 {[%emt 0:00:00]} 2. a3 {[%emt 0:00:00]} g6 {[%emt 0:
00:00]} 3. Nc3 {[%emt 0:00:00]} Bg7 {[%emt 0:00:00]} 4. Bc4 {[%emt 0:00:00]}
Nc6 {[%emt 0:00:00]} 5. d3 {[%emt 0:00:00]} e6 {[%emt 0:00:00]} 6. Ba2 {
[%emt 0:00:00]} Nge7 {[%emt 0:00:00]} 7. h4 {[%emt 0:00:00]} h5 {[%emt 0:00:00]
} 8. Bg5 {[%emt 0:00:00]} a6 {[%emt 0:00:00]} 9. Nge2 {[%emt 0:00:00]} Qc7 {
[%emt 0:00:00]} 10. Qd2 {[%emt 0:00:00]} b5 {[%emt 0:00:00]} 11. O-O {[%emt 0:
00:00]} Bb7 {[%emt 0:00:00]} 12. Rae1 {[%emt 0:00:00]} Ne5 {[%emt 0:00:00]} 13.
f3 {[%emt 0:00:00]} N7c6 {[%emt 0:00:00]} 14. Nd1 {[%emt 0:00:00]} Nd4 {
[%emt 0:00:00]} 15. c3 {[%emt 0:00:00]} Nxe2+ {[%emt 0:00:00]} 16. Rxe2 {
[%emt 0:00:00]} O-O {[%emt 0:00:00]} 17. Bh6 {[%emt 0:00:00]} Bxh6 {[%emt 0:00:
00]} 18. Qxh6 {[%emt 0:00:00]} Nxd3 {[%emt 0:00:00]} 19. f4 {[%emt 0:00:00]} c4
{[%emt 0:00:00]} 20. f5 {[%emt 0:00:00]} exf5 {[%emt 0:00:00]} 21. exf5 {
[%emt 0:00:00]} Rfe8 {[%emt 0:00:00]} 22. Re3 {[%emt 0:00:00]} Qc6 {[%emt 0:00:
00]} 23. Rg3 {[%emt 0:00:00]} Re2 {[%emt 0:00:00]} 24. Ne3 {[%emt 0:00:00]} 1-0

[Event "Open international de Salon de Provence"]
[Site "Salon de Provence, France"]
[Date "2024.07.07"]
[Round "3.4"]
[White "Bregier, Gerard"]
[Black "Madi, Walid"]
[Result "0-1"]
[WhiteElo "1600"]
[BlackElo "1701"]
[PlyCount "33"]
[EventDate "2024.??.??"]
[TimeControl "1"]

1. Nf3 {[%emt 0:00:00]} Nf6 {[%emt 0:00:00]} 2. g3 {[%emt 0:00:00]} g6 {
[%emt 0:00:00]} 3. b3 {[%emt 0:00:00]} d5 {[%emt 0:00:00]} 4. Bb2 {[%emt 0:00:
00]} Bg7 {[%emt 0:00:00]} 5. Bg2 {[%emt 0:00:00]} O-O {[%emt 0:00:00]} 6. O-O {
[%emt 0:00:00]} Bf5 {[%emt 0:00:00]} 7. d3 {[%emt 0:00:00]} Nbd7 {[%emt 0:00:
00]} 8. c4 {[%emt 0:00:00]} c6 {[%emt 0:00:00]} 9. Nc3 {[%emt 0:00:00]} d4 {
[%emt 0:00:00]} 10. Nxd4 {[%emt 0:00:00]} e5 {[%emt 0:00:00]} 11. Nxf5 {
[%emt 0:00:00]} gxf5 {[%emt 0:00:00]} 12. f4 {[%emt 0:00:00]} Ng4 {[%emt 0:00:
00]} 13. Rf3 {[%emt 0:00:00]} Qb6+ {[%emt 0:00:00]} 14. Kh1 {[%emt 0:00:00]}
Nf2+ {[%emt 0:00:00]} 15. Rxf2 {[%emt 0:00:08]} Qxf2 {[%emt 0:00:10]} 16. e4 {
[%emt 0:00:00]} Qxb2 {[%emt 0:01:32]} 17. Bf1 {[%emt 0:00:06]} 0-1

[Event "Open international de Salon de Provence"]
[Site "Salon de Provence, France"]
[Date "2024.07.07"]
[Round "3.5"]
[White "Rival, None"]
[Black "Madi, Chahinez"]
[Result "1-0"]
[WhiteElo "1640"]
[BlackElo "1687"]
[PlyCount "83"]
[EventDate "2024.??.??"]
[TimeControl "1"]

1. d4 {[%emt 0:00:00]} Nf6 {[%emt 0:00:00]} 2. c4 {[%emt 0:00:00]} g6 {[%emt 0:
00:00]} 3. Nc3 {[%emt 0:00:00]} Bg7 {[%emt 0:00:00]} 4. e4 {[%emt 0:00:00]} d6
{[%emt 0:00:00]} 5. Nf3 {[%emt 0:00:00]} O-O {[%emt 0:00:00]} 6. Be2 {[%emt 0:
00:00]} Nbd7 {[%emt 0:00:00]} 7. Be3 {[%emt 0:00:00]} e5 {[%emt 0:00:00]} 8. d5
{[%emt 0:00:00]} Nc5 {[%emt 0:00:00]} 9. Nd2 {[%emt 0:00:00]} a5 {[%emt 0:00:
00]} 10. O-O {[%emt 0:00:00]} Ne8 {[%emt 0:00:00]} 11. b3 {[%emt 0:00:00]} f5 {
[%emt 0:00:00]} 12. f3 {[%emt 0:00:00]} f4 {[%emt 0:00:00]} 13. Bf2 {[%emt 0:
00:00]} Bf6 {[%emt 0:00:00]} 14. Qe1 {[%emt 0:00:00]} Kh8 {[%emt 0:00:00]} 15.
a3 {[%emt 0:00:00]} Bd7 {[%emt 0:00:00]} 16. b4 {[%emt 0:00:00]} axb4 {[%emt 0:
00:00]} 17. axb4 {[%emt 0:00:00]} Rxa1 {[%emt 0:00:00]} 18. Qxa1 {[%emt 0:00:
00]} Na6 {[%emt 0:00:00]} 19. Rb1 {[%emt 0:00:00]} Bh4 {[%emt 0:00:00]} 20.
Bxh4 {[%emt 0:00:00]} Qxh4 {[%emt 0:00:00]} 21. c5 {[%emt 0:00:00]} dxc5 {
[%emt 0:00:00]} 22. Bxa6 {[%emt 0:00:00]} bxa6 {[%emt 0:00:00]} 23. bxc5 {
[%emt 0:00:00]} Qe7 {[%emt 0:00:00]} 24. Qa5 {[%emt 0:00:00]} g5 {[%emt 0:00:
00]} 25. Rb8 {[%emt 0:00:00]} Qf6 {[%emt 0:00:00]} 26. c6 {[%emt 0:00:00]} Bxc6
{[%emt 0:00:00]} 27. dxc6 {[%emt 0:00:00]} Qxc6 {[%emt 0:00:00]} 28. Qxe5+ {
[%emt 0:00:00]} Kg8 {[%emt 0:00:00]} 29. Qxg5+ {[%emt 0:00:00]} Kh8 {[%emt 0:
00:00]} 30. Qe5+ {[%emt 0:00:00]} Kg8 {[%emt 0:00:00]} 31. Qd5+ {[%emt 0:00:00]
} Qxd5 {[%emt 0:00:00]} 32. Nxd5 {[%emt 0:00:00]} Kg7 {[%emt 0:00:00]} 33. Ra8
{[%emt 0:00:00]} a5 {[%emt 0:00:00]} 34. Nc4 {[%emt 0:00:00]} a4 {[%emt 0:00:
00]} 35. Nc3 {[%emt 0:00:00]} Rf6 {[%emt 0:00:00]} 36. Rxa4 {[%emt 0:00:00]}
Rc6 {[%emt 0:00:00]} 37. Nd5 {[%emt 0:00:00]} Nd6 {[%emt 0:00:00]} 38. Nxd6 {
[%emt 0:00:00]} Rc1+ {[%emt 0:00:00]} 39. Kf2 {[%emt 0:00:00]} Rc2+ {[%emt 0:
00:00]} 40. Kf1 {[%emt 0:00:00]} Rc1+ {[%emt 0:00:00]} 41. Ke2 {[%emt 0:00:00]}
cxd6 {[%emt 0:00:00]} 42. Rd4 {[%emt 0:00:00]} 1-0

[Event "Open international de Salon de Provence"]
[Site "Salon de Provence, France"]
[Date "2024.07.07"]
[Round "3.6"]
[White "Tarisse, Mateo"]
[Black "Frailinu, Jean-Bernard"]
[Result "1-0"]
[WhiteElo "1636"]
[BlackElo "1638"]
[PlyCount "119"]
[EventDate "2024.??.??"]
[TimeControl "1"]

1. Nf3 {[%emt 0:00:00]} g6 {[%emt 0:00:00]} 2. c4 {[%emt 0:00:00]} Bg7 {
[%emt 0:00:00]} 3. d4 {[%emt 0:00:00]} d6 {[%emt 0:00:00]} 4. e4 {[%emt 0:00:
00]} Nd7 {[%emt 0:00:00]} 5. Nc3 {[%emt 0:00:00]} c5 {[%emt 0:00:00]} 6. Be3 {
[%emt 0:00:00]} cxd4 {[%emt 0:00:00]} 7. Nxd4 {[%emt 0:00:00]} a6 {[%emt 0:00:
00]} 8. Be2 {[%emt 0:00:00]} Ne5 {[%emt 0:00:00]} 9. O-O {[%emt 0:00:00]} Nf6 {
[%emt 0:00:00]} 10. f3 {[%emt 0:00:00]} O-O {[%emt 0:00:00]} 11. Qb3 {[%emt 0:
00:00]} Bd7 {[%emt 0:00:00]} 12. Nd5 {[%emt 0:00:00]} Rb8 {[%emt 0:00:00]} 13.
Nb6 {[%emt 0:00:00]} Be8 {[%emt 0:00:00]} 14. Nc2 {[%emt 0:00:00]} Nfd7 {
[%emt 0:00:00]} 15. f4 {[%emt 0:00:00]} Nc6 {[%emt 0:00:00]} 16. Nxd7 {[%emt 0:
00:00]} Bxd7 {[%emt 0:00:00]} 17. Bb6 {[%emt 0:00:00]} Qc8 {[%emt 0:00:00]} 18.
Rad1 {[%emt 0:00:00]} Be6 {[%emt 0:00:00]} 19. Ne3 {[%emt 0:00:00]} Re8 {
[%emt 0:00:00]} 20. Nd5 {[%emt 0:00:00]} Bg4 {[%emt 0:00:00]} 21. Bxg4 {
[%emt 0:00:00]} Qxg4 {[%emt 0:00:00]} 22. Bc7 {[%emt 0:00:00]} Nd4 {[%emt 0:00:
00]} 23. Qe3 {[%emt 0:00:00]} Rbc8 {[%emt 0:00:00]} 24. Rxd4 {[%emt 0:00:00]}
Bxd4 {[%emt 0:00:00]} 25. Qxd4 {[%emt 0:00:00]} Qd7 {[%emt 0:00:00]} 26. Nb6 {
[%emt 0:00:00]} Qxc7 {[%emt 0:00:00]} 27. Nxc8 {[%emt 0:00:00]} Rxc8 {[%emt 0:
00:00]} 28. b3 {[%emt 0:00:00]} Qc5 {[%emt 0:00:00]} 29. Rd1 {[%emt 0:00:00]}
Kf8 {[%emt 0:00:00]} 30. Kf2 {[%emt 0:00:00]} Qxd4+ {[%emt 0:00:00]} 31. Rxd4 {
[%emt 0:00:00]} Rc6 {[%emt 0:00:00]} 32. Ke3 {[%emt 0:00:00]} Ke8 {[%emt 0:00:
00]} 33. e5 {[%emt 0:00:00]} b6 {[%emt 0:00:00]} 34. exd6 {[%emt 0:00:00]} exd6
{[%emt 0:00:00]} 35. Rd5 {[%emt 0:00:00]} Kd7 {[%emt 0:00:00]} 36. f5 {[%emt 0:
00:00]} Ke7 {[%emt 0:00:00]} 37. Kf4 {[%emt 0:00:00]} Kf6 {[%emt 0:00:00]} 38.
g4 {[%emt 0:00:00]} g5+ {[%emt 0:00:00]} 39. Ke4 {[%emt 0:00:00]} h6 {[%emt 0:
00:00]} 40. Rd3 {[%emt 0:00:00]} Ke7 {[%emt 0:00:00]} 41. Rh3 {[%emt 0:00:00]}
b5 {[%emt 0:00:00]} 42. Kd3 {[%emt 0:00:00]} bxc4+ {[%emt 0:00:00]} 43. bxc4 {
[%emt 0:00:00]} Rc5 {[%emt 0:00:00]} 44. Kc3 {[%emt 0:00:00]} Ra5 {[%emt 0:00:
00]} 45. Kb3 {[%emt 0:00:00]} d5 {[%emt 0:00:00]} 46. cxd5 {[%emt 0:00:00]}
Rxd5 {[%emt 0:00:00]} 47. Rxh6 {[%emt 0:00:00]} Rd4 {[%emt 0:00:00]} 48. h3 {
[%emt 0:00:00]} a5 {[%emt 0:00:00]} 49. Rc6 {[%emt 0:00:00]} Rb4+ {[%emt 0:00:
00]} 50. Ka3 {[%emt 0:00:00]} Rf4 {[%emt 0:00:00]} 51. Rc5 {[%emt 0:00:00]}
Rf3+ {[%emt 0:00:00]} 52. Ka4 {[%emt 0:00:00]} Rxh3 {[%emt 0:00:00]} 53. Rc4 {
[%emt 0:00:00]} Rf3 {[%emt 0:00:00]} 54. Kxa5 {[%emt 0:00:00]} Rf4 {[%emt 0:00:
00]} 55. Kb5 {[%emt 0:00:00]} Kd6 {[%emt 0:00:00]} 56. Rxf4 {[%emt 0:00:00]}
gxf4 {[%emt 0:00:00]} 57. Kc4 {[%emt 0:00:00]} Ke5 {[%emt 0:00:00]} 58. Kd3 {
[%emt 0:00:00]} Kd5 {[%emt 0:00:00]} 59. a4 {[%emt 0:00:00]} f6 {[%emt 0:00:00]
} 60. a5 {[%emt 0:00:00]} 1-0

[Event "Open international de Salon de Provence"]
[Site "Salon de Provence, France"]
[Date "2024.07.07"]
[Round "3.7"]
[White "Gautier Mazauric, Thomas"]
[Black "Metzger, Raphael"]
[Result "0-1"]
[WhiteElo "1638"]
[BlackElo "1601"]
[PlyCount "59"]
[EventDate "2024.??.??"]
[TimeControl "1"]

1. e4 {[%emt 0:00:00]} e5 {[%emt 0:00:00]} 2. Nc3 {[%emt 0:00:00]} Nc6 {
[%emt 0:00:00]} 3. Bc4 {[%emt 0:00:00]} Nf6 {[%emt 0:00:00]} 4. d3 {[%emt 0:00:
00]} Bc5 {[%emt 0:00:00]} 5. f4 {[%emt 0:00:00]} Na5 {[%emt 0:00:00]} 6. Bxf7+
{[%emt 0:00:00]} Kxf7 {[%emt 0:00:00]} 7. fxe5 {[%emt 0:00:00]} Ne8 {[%emt 0:
00:00]} 8. Qh5+ {[%emt 0:00:00]} Kg8 {[%emt 0:00:00]} 9. Bg5 {[%emt 0:00:00]}
Be7 {[%emt 0:00:00]} 10. e6 {[%emt 0:00:00]} dxe6 {[%emt 0:00:00]} 11. Bxe7 {
[%emt 0:00:42]} Qxe7 {[%emt 0:00:00]} 12. Qxa5 {[%emt 0:00:00]} b6 {[%emt 0:00:
00]} 13. Qe5 {[%emt 0:00:00]} Nf6 {[%emt 0:00:00]} 14. Nf3 {[%emt 0:00:00]} Qd6
{[%emt 0:00:00]} 15. Qg5 {[%emt 0:00:00]} Qe7 {[%emt 0:00:00]} 16. e5 {[%emt 0:
00:00]} Nd5 {[%emt 0:00:00]} 17. Nxd5 {[%emt 0:00:00]} Qxg5 {[%emt 0:00:00]}
18. Nxg5 {[%emt 0:00:00]} exd5 {[%emt 0:00:00]} 19. O-O {[%emt 0:00:00]} h6 {
[%emt 0:00:00]} 20. Nf7 {[%emt 0:00:00]} Rh7 {[%emt 0:00:00]} 21. Rae1 {
[%emt 0:00:00]} Be6 {[%emt 0:00:00]} 22. Nd6 {[%emt 0:00:00]} cxd6 {[%emt 0:00:
00]} 23. exd6 {[%emt 0:00:00]} Re8 {[%emt 0:00:00]} 24. Re3 {[%emt 0:00:00]} h5
{[%emt 0:00:00]} 25. d4 {[%emt 0:00:00]} Rh6 {[%emt 0:00:00]} 26. c4 {[%emt 0:
00:00]} dxc4 {[%emt 0:00:00]} 27. d5 {[%emt 0:00:00]} Bd7 {[%emt 0:00:00]} 28.
Rxe8+ {[%emt 0:00:00]} Bxe8 {[%emt 0:00:00]} 29. Re1 {[%emt 0:00:00]} Bd7 {
[%emt 0:00:00]} 30. Re8+ {[%emt 0:00:00]} 0-1

[Event "Open international de Salon de Provence"]
[Site "Salon de Provence, France"]
[Date "2024.07.07"]
[Round "3.8"]
[White "Bicais, Noam"]
[Black "Belaid, Noa"]
[Result "1/2-1/2"]
[WhiteElo "1603"]
[BlackElo "1594"]
[PlyCount "49"]
[EventDate "2024.??.??"]
[TimeControl "1"]

1. e4 {[%emt 0:00:00]} e5 {[%emt 0:00:00]} 2. Nf3 {[%emt 0:00:00]} Nc6 {
[%emt 0:00:00]} 3. d4 {[%emt 0:00:00]} exd4 {[%emt 0:00:00]} 4. Nxd4 {[%emt 0:
00:00]} Bc5 {[%emt 0:00:00]} 5. Be3 {[%emt 0:00:00]} Qf6 {[%emt 0:00:00]} 6. c3
{[%emt 0:00:00]} Nge7 {[%emt 0:00:00]} 7. g3 {[%emt 0:00:00]} d5 {[%emt 0:00:
00]} 8. Bg2 {[%emt 0:00:00]} Nxd4 {[%emt 0:00:00]} 9. cxd4 {[%emt 0:00:00]}
Bb4+ {[%emt 0:00:00]} 10. Nc3 {[%emt 0:00:00]} Bxc3+ {[%emt 0:00:00]} 11. bxc3
{[%emt 0:00:00]} dxe4 {[%emt 0:00:00]} 12. Bxe4 {[%emt 0:00:00]} O-O {[%emt 0:
00:00]} 13. O-O {[%emt 0:00:00]} Re8 {[%emt 0:00:00]} 14. Re1 {[%emt 0:00:00]}
Nf5 {[%emt 0:00:00]} 15. Bg2 {[%emt 0:00:00]} Nxe3 {[%emt 0:00:00]} 16. fxe3 {
[%emt 0:00:00]} c6 {[%emt 0:00:00]} 17. e4 {[%emt 0:00:00]} Be6 {[%emt 0:00:00]
} 18. Qc2 {[%emt 0:00:00]} Re7 {[%emt 0:00:00]} 19. Rad1 {[%emt 0:00:00]} Rae8
{[%emt 0:00:00]} 20. e5 {[%emt 0:00:00]} Qg5 {[%emt 0:00:00]} 21. Qd2 {[%emt 0:
00:00]} Qxd2 {[%emt 0:00:00]} 22. Rxd2 {[%emt 0:00:00]} Bc4 {[%emt 0:00:00]}
23. Rb2 {[%emt 0:00:00]} Ba6 {[%emt 0:00:00]} 24. Bf1 {[%emt 0:00:00]} Bxf1 {
[%emt 0:00:00]} 25. Kxf1 {[%emt 0:00:00]} 1/2-1/2

[Event "Open international de Salon de Provence"]
[Site "Salon de Provence, France"]
[Date "2024.07.08"]
[Round "4.1"]
[White "Petrosyan, Armen"]
[Black "Philippe, Guillaume"]
[Result "1/2-1/2"]
[WhiteElo "2358"]
[BlackElo "2359"]
[PlyCount "47"]
[EventDate "2024.??.??"]
[TimeControl "1"]

1. e4 {[%emt 0:00:00]} c5 {[%emt 0:00:00]} 2. Nf3 {[%emt 0:00:00]} e6 {[%emt 0:
00:00]} 3. d4 {[%emt 0:00:00]} cxd4 {[%emt 0:00:00]} 4. Nxd4 {[%emt 0:00:00]}
Nc6 {[%emt 0:00:00]} 5. Nc3 {[%emt 0:00:00]} d6 {[%emt 0:00:00]} 6. g4 {
[%emt 0:00:00]} Nxd4 {[%emt 0:00:00]} 7. Qxd4 {[%emt 0:00:00]} Ne7 {[%emt 0:00:
00]} 8. Be3 {[%emt 0:00:00]} Nc6 {[%emt 0:00:00]} 9. Qd2 {[%emt 0:00:00]} a6 {
[%emt 0:00:00]} 10. O-O-O {[%emt 0:00:00]} Be7 {[%emt 0:00:00]} 11. g5 {
[%emt 0:00:00]} b5 {[%emt 0:00:00]} 12. Kb1 {[%emt 0:00:00]} Bb7 {[%emt 0:00:
00]} 13. f4 {[%emt 0:00:00]} Rc8 {[%emt 0:00:00]} 14. Qf2 {[%emt 0:00:00]} Qc7
{[%emt 0:00:00]} 15. Rg1 {[%emt 0:00:00]} Qb8 {[%emt 0:00:00]} 16. Bb6 {
[%emt 0:00:00]} O-O {[%emt 0:00:00]} 17. h4 {[%emt 0:00:00]} Bd8 {[%emt 0:00:
00]} 18. Bd3 {[%emt 0:00:00]} Nb4 {[%emt 0:00:00]} 19. Bxd8 {[%emt 0:00:00]}
Rfxd8 {[%emt 0:00:00]} 20. f5 {[%emt 0:00:00]} Nxd3 {[%emt 0:00:00]} 21. cxd3 {
[%emt 0:00:00]} b4 {[%emt 0:00:00]} 22. Na4 {[%emt 0:00:00]} exf5 {[%emt 0:00:
00]} 23. exf5 {[%emt 0:00:00]} Bc6 {[%emt 0:00:00]} 24. Nb6 {[%emt 0:01:06]}
1/2-1/2

[Event "Open international de Salon de Provence"]
[Site "Salon de Provence, France"]
[Date "2024.07.08"]
[Round "4.2"]
[White "Gusain, Himal"]
[Black "Lalic, Bogdan"]
[Result "1-0"]
[WhiteElo "2490"]
[BlackElo "2358"]
[PlyCount "135"]
[EventDate "2024.??.??"]
[TimeControl "1"]

1. e4 {[%emt 0:00:00]} c6 {[%emt 0:00:00]} 2. d4 {[%emt 0:00:00]} d5 {[%emt 0:
00:00]} 3. e5 {[%emt 0:00:00]} c5 {[%emt 0:00:00]} 4. dxc5 {[%emt 0:00:00]} e6
{[%emt 0:00:00]} 5. a3 {[%emt 0:00:00]} Bxc5 {[%emt 0:00:00]} 6. b4 {[%emt 0:
00:00]} Be7 {[%emt 0:00:00]} 7. Nf3 {[%emt 0:00:00]} a5 {[%emt 0:00:00]} 8. b5
{[%emt 0:00:00]} Nd7 {[%emt 0:00:00]} 9. Bd3 {[%emt 0:00:00]} f6 {[%emt 0:00:
00]} 10. Bb2 {[%emt 0:00:00]} Nh6 {[%emt 0:00:00]} 11. c4 {[%emt 0:00:00]} Nc5
{[%emt 0:00:00]} 12. Nc3 {[%emt 0:00:00]} fxe5 {[%emt 0:00:00]} 13. cxd5 {
[%emt 0:00:00]} Nf7 {[%emt 0:00:00]} 14. Bc2 {[%emt 0:00:00]} exd5 {[%emt 0:00:
00]} 15. Nxd5 {[%emt 0:00:00]} e4 {[%emt 0:00:00]} 16. Nxe7 {[%emt 0:00:00]}
Qxe7 {[%emt 0:00:00]} 17. Nd4 {[%emt 0:00:00]} Nd3+ {[%emt 0:00:00]} 18. Bxd3 {
[%emt 0:00:00]} exd3+ {[%emt 0:00:00]} 19. Kf1 {[%emt 0:00:00]} O-O {[%emt 0:
00:00]} 20. Qxd3 {[%emt 0:00:00]} Ne5 {[%emt 0:00:00]} 21. Qb3+ {[%emt 0:00:00]
} Kh8 {[%emt 0:00:00]} 22. Re1 {[%emt 0:00:00]} Qf6 {[%emt 0:00:00]} 23. f3 {
[%emt 0:00:00]} a4 {[%emt 0:00:00]} 24. Qc3 {[%emt 0:00:00]} Bd7 {[%emt 0:00:
00]} 25. Nc6 {[%emt 0:00:00]} Nxc6 {[%emt 0:00:00]} 26. Qxf6 {[%emt 0:00:00]}
gxf6 {[%emt 0:00:00]} 27. bxc6 {[%emt 0:00:00]} Bxc6 {[%emt 0:00:00]} 28. Re6 {
[%emt 0:00:00]} Kg7 {[%emt 0:00:00]} 29. Kf2 {[%emt 0:00:00]} Rad8 {[%emt 0:00:
00]} 30. Bc3 {[%emt 0:00:00]} Rd3 {[%emt 0:00:00]} 31. Rc1 {[%emt 0:00:00]} Rf7
{[%emt 0:00:00]} 32. Kg3 {[%emt 0:00:00]} Kg6 {[%emt 0:00:00]} 33. Kf4 {
[%emt 0:00:00]} Rd5 {[%emt 0:00:00]} 34. Rce1 {[%emt 0:00:00]} Rf5+ {[%emt 0:
00:00]} 35. Kg3 {[%emt 0:00:00]} Rd7 {[%emt 0:00:00]} 36. R1e3 {[%emt 0:00:00]}
Rf7 {[%emt 0:00:00]} 37. Rd3 {[%emt 0:00:00]} Rc5 {[%emt 0:00:00]} 38. Red6 {
[%emt 0:00:00]} Rb5 {[%emt 0:00:00]} 39. R3d4 {[%emt 0:00:00]} Rg5+ {[%emt 0:
00:00]} 40. Kf2 {[%emt 0:00:00]} h5 {[%emt 0:00:00]} 41. g4 {[%emt 0:00:00]}
Rc5 {[%emt 0:00:00]} 42. Rd3 {[%emt 0:00:00]} Rb5 {[%emt 0:00:00]} 43. Bb4 {
[%emt 0:00:00]} Rh7 {[%emt 0:00:00]} 44. Kg3 {[%emt 0:00:00]} hxg4 {[%emt 0:00:
00]} 45. fxg4 {[%emt 0:00:00]} Kf7 {[%emt 0:00:00]} 46. Re3 {[%emt 0:00:00]}
Rd5 {[%emt 0:00:00]} 47. h4 {[%emt 0:00:00]} f5 {[%emt 0:00:00]} 48. Re7+ {
[%emt 0:00:00]} Kxe7 {[%emt 0:00:00]} 49. Rxd5+ {[%emt 0:00:00]} Ke6 {[%emt 0:
00:00]} 50. Rxf5 {[%emt 0:00:00]} Rd7 {[%emt 0:00:00]} 51. h5 {[%emt 0:00:00]}
Rd3+ {[%emt 0:00:00]} 52. Kh4 {[%emt 0:00:00]} Be4 {[%emt 0:00:00]} 53. Rf8 {
[%emt 0:00:00]} Rf3 {[%emt 0:00:00]} 54. Re8+ {[%emt 0:00:00]} Kd5 {[%emt 0:00:
00]} 55. g5 {[%emt 0:00:00]} Rf4+ {[%emt 0:00:00]} 56. Kg3 {[%emt 0:00:00]} Rf1
{[%emt 0:00:00]} 57. g6 {[%emt 0:00:00]} Bxg6 {[%emt 0:00:00]} 58. hxg6 {
[%emt 0:00:00]} Rg1+ {[%emt 0:00:00]} 59. Kf4 {[%emt 0:00:00]} Rxg6 {[%emt 0:
00:00]} 60. Rb8 {[%emt 0:00:00]} b6 {[%emt 0:00:00]} 61. Ke3 {[%emt 0:00:00]}
Kc6 {[%emt 0:00:00]} 62. Rc8+ {[%emt 0:00:00]} Kb7 {[%emt 0:00:00]} 63. Rc4 {
[%emt 0:00:00]} Rc6 {[%emt 0:00:00]} 64. Rh4 {[%emt 0:00:00]} b5 {[%emt 0:00:
00]} 65. Rh5 {[%emt 0:00:00]} Kb6 {[%emt 0:00:00]} 66. Kd4 {[%emt 0:00:00]}
Rc4+ {[%emt 0:00:00]} 67. Kd5 {[%emt 0:00:00]} Rc6 {[%emt 0:00:00]} 68. Ba5+ {
[%emt 0:00:00]} 1-0

[Event "Open international de Salon de Provence"]
[Site "Salon de Provence, France"]
[Date "2024.07.08"]
[Round "4.3"]
[White "Madi, Walid"]
[Black "Enchev, Ivajlo"]
[Result "0-1"]
[WhiteElo "1701"]
[BlackElo "2416"]
[PlyCount "62"]
[EventDate "2024.??.??"]
[TimeControl "1"]

1. d4 {[%emt 0:00:00]} Nf6 {[%emt 0:00:00]} 2. c4 {[%emt 0:00:00]} b6 {[%emt 0:
00:00]} 3. Nf3 {[%emt 0:00:00]} Bb7 {[%emt 0:00:00]} 4. e3 {[%emt 0:00:00]} e6
{[%emt 0:00:00]} 5. Nc3 {[%emt 0:00:00]} d5 {[%emt 0:00:00]} 6. cxd5 {[%emt 0:
00:00]} exd5 {[%emt 0:00:00]} 7. Bd3 {[%emt 0:00:00]} a6 {[%emt 0:00:00]} 8.
O-O {[%emt 0:00:00]} Bd6 {[%emt 0:00:00]} 9. Qe2 {[%emt 0:00:00]} Qe7 {[%emt 0:
00:00]} 10. a3 {[%emt 0:00:00]} Nbd7 {[%emt 0:00:00]} 11. b3 {[%emt 0:00:00]}
O-O {[%emt 0:00:00]} 12. Bb2 {[%emt 0:00:00]} Ne4 {[%emt 0:00:00]} 13. Qc2 {
[%emt 0:00:00]} f5 {[%emt 0:00:00]} 14. Ne2 {[%emt 0:00:00]} g5 {[%emt 0:00:00]
} 15. Rac1 {[%emt 0:00:00]} Rac8 {[%emt 0:00:00]} 16. g3 {[%emt 0:00:00]} Rf7 {
[%emt 0:00:00]} 17. Ne1 {[%emt 0:00:00]} f4 {[%emt 0:00:00]} 18. f3 {[%emt 0:
00:00]} fxg3 {[%emt 0:00:00]} 19. hxg3 {[%emt 0:00:00]} Nxg3 {[%emt 0:00:00]}
20. Nxg3 {[%emt 0:00:00]} Bxg3 {[%emt 0:00:00]} 21. e4 {[%emt 0:00:00]} Nf6 {
[%emt 0:00:00]} 22. e5 {[%emt 0:00:00]} Nh5 {[%emt 0:00:00]} 23. Bf5 {[%emt 0:
00:00]} Rcf8 {[%emt 0:00:00]} 24. Bg4 {[%emt 0:00:00]} Nf4 {[%emt 0:00:00]} 25.
Nd3 {[%emt 0:00:00]} Rg7 {[%emt 0:00:00]} 26. Nf2 {[%emt 0:00:00]} h5 {[%emt 0:
00:00]} 27. Bf5 {[%emt 0:00:00]} Qf7 {[%emt 0:00:00]} 28. Bd3 {[%emt 0:00:00]}
g4 {[%emt 0:00:00]} 29. e6 {[%emt 0:00:00]} Qxe6 {[%emt 0:00:00]} 30. Rce1 {
[%emt 0:00:00]} Qf6 {[%emt 0:00:00]} 31. Bc4 {[%emt 0:00:00]} gxf3 {[%emt 0:00:
00]} 0-1